Cogmind - Beta 17 @@@ ROGUE MODE // 2026.08.08 @ 01:45:02 Player: 4R-ZE3 Result: Destroyed by as-62329 with Assembled Blade Performance ------------- Evolutions (0) 0 Regions Visited (2) 400 Robots Destroyed (25) 125 Value Destroyed (434) 434 Prototype IDs (0) 0 Alien Tech Used (0) 0 Bonus (0) 0 TOTAL SCORE: 959 Bonus ------- None Cogmind --------- Core Integrity 0/250 Matter 297/300 Energy 250/250 System Corruption 0% Temperature Cool (4) Movement Treading (240) Ox1 Location -10/Mines Parts ------- > --- POWER (1) -------- Ion Engine > --- PROPULSION (2) --- Light Treads > --- UTILITY (2) ------ Improved Heat Sink Large Storage Unit > --- WEAPON (2) ------- Medium Laser Light Assault Rifle > --- INVENTORY (15) --- Light Treads Wheel Wheel Heat Sink Heat Sink Targeting Computer Targeting Computer Light Armor Plating Hacking Suite Tractor Beam Medium Laser Light Assault Rifle Light Assault Rifle Heavy Assault Rifle Mining Laser Peak State ------------ > --- POWER ------------ Ion Engine > --- PROPULSION ------- Light Treads Light Treads > --- UTILITY ---------- Improved Heat Sink Large Storage Unit > --- WEAPON ----------- Medium Laser Light Assault Rifle > --- INVENTORY -------- Light Treads Aluminum Leg Aluminum Leg Aluminum Leg Aluminum Leg Heat Sink Heat Sink Hacking Suite Small Laser Small Laser Small Laser Light Assault Rifle Mining Laser [Rating: 10] Favorites ----------- Power Ion Engine Engine Ion Engine Propulsion Light Treads Treads Light Treads Wheel Compact Wheel Utility Large Storage Unit Device Improved Heat Sink Storage Large Storage Unit Weapon Medium Laser Energy Gun Medium Laser Ballistic Gun Light Assault Rifle Build | -11 -10 -10 ------- Run | Yrd Mat Min Slots Evolved . | . . . Power . | . . . Propulsion . | . . . Utility . | . . . Weapon . | . . . Parts Attached 15 | 6 6 3 Power 2 | 1 1 . Engine 2 | 1 1 . Core . | . . . Reactor . | . . . Propulsion 4 | 2 . 2 Treads 3 | 2 . 1 Leg . | . . . Wheel 1 | . . 1 Hover . | . . . Flight . | . . . Utility 4 | 1 3 . Device 2 | . 2 . Storage 2 | 1 1 . Processor . | . . . Hackware . | . . . Protection . | . . . Artifact . | . . . Weapon 5 | 2 2 1 Energy Gun 3 | 1 1 1 Energy Cannon . | . . . Ballistic Gun 2 | 1 1 . Ballistic Cannon . | . . . Launcher . | . . . Special Weapon . | . . . Impact Weapon . | . . . Slashing Weapon . | . . . Piercing Weapon . | . . . Special Melee Weapon . | . . . Unidentified Prototypes . | . . . Parts Lost 6 | . 3 3 Power . | . . . Propulsion 3 | . . 3 Utility 1 | . 1 . Weapon 2 | . 2 . Highest Loss Streak 2 | . 2 1 To Critical Strikes . | . . . Average Backups 10 | . 9 14 Power . | . . . Propulsion 2 | . 2 3 Utility 3 | . 2 5 Weapon 3 | . 3 5 Tool/Special . | . . . Unused Backups 21 | . . 21 Power . | . . . Propulsion 7 | . . 7 Utility 7 | . . 7 Weapon 7 | . . 7 Tool/Special . | . . . Average Slot Usage (%) 92 | . 90 99 Engine 14 | . 14 14 Treads 26 | . 28 21 Wheel 1 | . . 6 Device 7 | . 5 14 Storage 14 | . 14 14 Energy Gun 14 | . 14 14 Ballistic Gun 13 | . 13 14 Peak Build Rating 10 | 6 10 10 Average Rating 7 | 4 7 9 On Entrance 5 | . 6 10 Avg Prop Armor Cover (%) 14 | . . 14 Naked Turns . | . . . Heaviest Build 29 | 14 29 29 Greatest Support 40 | 40 40 40 Greatest Overweight (x) 1 | . . 1 Average Overweight (x) . | . . . Largest Inventory Capacity 15 | 8 15 15 Average Capacity 13 | 7 12 15 Most Carried 15 | 1 15 15 Average Carried 10 | . 9 14 Final Capacity 15 | 8 15 15 Final Carried 15 | 1 15 15 Class Distribution -------------------- 88% | Mutant 11% | Scavenger-Mutant Dominant Class ---------------- Mutant | -10/Materials Mutant | -10/Mines Resources | -11 -10 -10 ----------- Run | Yrd Mat Min Matter Collected 488 | 133 303 52 Remotely . | . . . Salvage Created 656 | . 485 171 Parts 43 | . 30 13 Haulers Intercepted 1 | . 1 . Recyclers Shooed . | . . . Parts Field Recycled . | . . . Retrieved Matter . | . . . Parts Self-Destructed . | . . . Prevented . | . . . Parts Restored . | . . . Kills | -11 -10 -10 ------- Run | Yrd Mat Min Combat Hostiles Destroyed 20 | . 13 7 Guns 20 | . 13 7 Classes Destroyed 8 | . 5 3 Tunneler 1 | . . 1 Hauler 1 | . 1 . Recycler 1 | . . 1 Operator 2 | . 2 . Watcher 1 | . 1 . Swarmer 12 | . 6 6 Grunt 7 | . 7 . Assembled 1 | . . 1 Best Kill Streak 6 | . 6 4 Combat Bots Only 5 | . 5 3 Max Kills in Single Turn 1 | . 1 1 Gunslinging . | . . . Exploded . | . . . Melee . | . . . Uniques/NPCs Destroyed . | . . . Combat | -11 -10 -10 -------- Run | Yrd Mat Min Hostile Shots Fired 112 | . 65 47 Missed 20 | . 9 11 Hits 92 | . 56 36 Melee 4 | . . 4 Projectile 88 | . 56 32 Damage Taken 1003 | . 596 407 Core 271 | . 114 157 Absorbed by Shields . | . . . Core Remaining (%) 100 | 100 . . Volleys Fired 82 | . 50 32 Largest 2 | . 2 2 Hottest 100 | . 100 70 Shots Fired 163 | . 99 64 Gun 163 | . 99 64 Cannon . | . . . Launcher . | . . . Special . | . . . Kinetic 79 | . 47 32 Thermal 84 | . 52 32 Explosive . | . . . Electromagnetic . | . . . Robot Hit Streak 10 | . 10 6 Robot Miss Streak 6 | . 4 6 Penetration Max . | . . . Secondary Targets . | . . . Shots Hit Robots 95 | . 60 35 Core Hits 40 | . 28 12 Critical Kills . | . . . Critical Parts Destroyed . | . . . Critical Strikes 9 | . 5 4 Burn 9 | . 5 4 Melee Attacks . | . . . Impact . | . . . Slashing . | . . . Piercing . | . . . Sneak Attacks . | . . . Combat Hostiles . | . . . Follow-up Attacks . | . . . Damage Inflicted 1111 | . 739 372 Guns 1111 | . 739 372 Cannons . | . . . Explosions . | . . . Melee . | . . . Ramming . | . . . Kinetic 419 | . 285 134 Thermal 692 | . 454 238 Explosive . | . . . Electromagnetic . | . . . Impact . | . . . Slashing . | . . . Piercing . | . . . Highest Corruption . | . . . Average Corruption . | . . . Corruption Purged . | . . . Corruption Blocked . | . . . Overload Shots . | . . . Overflow Damage . | . . . Projectiles . | . . . Explosions . | . . . Melee . | . . . Knockbacks . | . . . Impact . | . . . Kinetic . | . . . Secondary . | . . . Self-Inflicted Damage . | . . . Shots . | . . . Rammed . | . . . Targets Rammed . | . . . Kicked . | . . . Crushed . | . . . Highest Temperature 216 | . 216 4 Average Temperature 48 | . 64 1 Received Heat Transfer 249 | . 249 . Siege Activations . | . . . Martial Activations . | . . . Shielding Activations . | . . . Robots Disrupted . | . . . Combat Hostiles . | . . . Robots Corrupted . | . . . Combat Hostiles . | . . . Parts Fried . | . . . Impact Corruptions . | . . . Robots Melted . | . . . Combat Hostiles . | . . . Parts Melted 7 | . 5 2 Heat Transferred 2701 | . 1702 999 Parts Sabotaged . | . . . Parts Stolen . | . . . Parts Stripped . | . . . Power Chain Reactions . | . . . Alert | -11 -10 -10 ------- Run | Yrd Mat Min Maximum Alert Level . | . . . Low Security (%) 100 | 100 100 100 Level 1 . | . . . Level 2 . | . . . Level 3 . | . . . Level 4 . | . . . Level 5 . | . . . High Security . | . . . Max Security . | . . . Peak Influence 111 | . 111 80 Initial . | . . . Average 26 | . 29 21 Influence Increases 528 | . 363 165 Destroy 0b10 Robot/C 380 | . 260 120 Destroy 0b10 Robot/NC 30 | . 20 10 Destroy Leader 74 | . 54 20 Successful Hack 12 | . 12 . Destroy Structure 2 | . 2 . Lose Combat Pursuer 30 | . 15 15 Influence Decreases 528 | . 363 165 Time Decay 478 | . 333 145 Lost Part 50 | . 30 20 Squads Dispatched 2 | . 2 . Investigation 1 | . 1 . Extermination . | . . . Reinforcement 1 | . 1 . Assault . | . . . Garrison . | . . . Intercept . | . . . Searches Triggered . | . . . Construction Impeded . | . . . Haulers Reinforced . | . . . Active Scanning Responses . | . . . Cargo Convoy Interrupts . | . . . Stealth | -11 -10 -10 --------- Run | Yrd Mat Min Distress Signals . | . . . Communications Jammed . | . . . Distress Signals . | . . . Times Spotted 34 | . 26 8 Peak Tracking Total 4 | . 4 3 Tactical Retreats 2 | . 1 1 Traps | -11 -10 -10 ------- Run | Yrd Mat Min Traps Triggered . | . . . Indirectly . | . . . Trap Hack Attempts . | . . . Triggered . | . . . Disarmed . | . . . Reprogrammed . | . . . Reused . | . . . Traps Extracted . | . . . Installed . | . . . Triggered . | . . . Machines | -11 -10 -10 ---------- Run | Yrd Mat Min Machines Disabled . | . . . Max in Single Turn . | . . . Machines Repaired . | . . . Machines Dismantled . | . . . Machines Sabotaged . | . . . Overloaded Fab Kills . | . . . Hacking | -11 -10 -10 --------- Run | Yrd Mat Min Machines Accessed 9 | . 9 . Terminals 7 | . 7 . Fabricators . | . . . Repair Stations . | . . . Recycling Units 2 | . 2 . Scanalyzers . | . . . Garrison Access . | . . . Total Hacks 22 | . 22 . Successful 12 | . 12 . Failed 10 | . 10 . Catastrophic 1 | . 1 . Database Lockouts . | . . . Manual 18 | . 18 . Terminals 19 | . 19 . Fabricators . | . . . Repair Stations . | . . . Recycling Units 3 | . 3 . Scanalyzers . | . . . Garrison Access . | . . . Terminal Hacks 1 | . 1 . Zone Layout 1 | . 1 . Fabricator Hacks . | . . . Repair Station Hacks . | . . . Recycling Unit Hacks 2 | . 2 . Retrieve Components 2 | . 2 . Scanalyzer . | . . . Garrison Access Hacks . | . . . Unauthorized Hacks 9 | . 9 . Terminals 9 | . 9 . Botnet 3 | . 3 . Operators 1 | . 1 . Skim 5 | . 5 . Fabricators . | . . . Repair Stations . | . . . Recycling Units . | . . . Scanalyzers . | . . . Garrison Access . | . . . Data Cores Recovered 1 | . 1 . Used . | . . . Hacking Detections 6 | . 6 . Full Trace Events 1 | . 1 . Feedback Events . | . . . Feedback Blocked . | . . . Robot Schematics Acquired . | . . . Robots Built . | . . . Authchips . | . . . Time . | . . . Total Robot Build Rating . | . . . Part Schematics Acquired . | . . . Parts Built . | . . . Authchips . | . . . Time . | . . . Total Part Build Rating . | . . . Part Studies Acquired . | . . . Parts Repaired . | . . . Time . | . . . Parts Recycled . | . . . Recycled Matter . | . . . Retrieved Matter . | . . . Retrieved Components 20 | . 20 . Parts Scanalyzed . | . . . Part Schematics Acquired . | . . . Parts Damaged . | . . . Bothacking | -11 -10 -10 ------------ Run | Yrd Mat Min Used RIF Installer . | . . . Robots Hacked . | . . . Non-combat . | . . . Combat . | . . . Robot Hacks Applied . | . . . Relay Couplers Released . | . . . Fabnet Peak Effective % . | . . . Robots Rewired . | . . . Allies Hacked . | . . . Hacks Repelled . | . . . Allies | -11 -10 -10 -------- Run | Yrd Mat Min Total Allies . | . . . Largest Group . | . . . Highest-Rated Group . | . . . Highest-Rated Ally . | . . . Total Orders . | . . . Ally Attacks . | . . . Total Damage . | . . . Kills . | . . . Allies Corrupted . | . . . Allies Melted . | . . . Intel | -11 -10 -10 ------- Run | Yrd Mat Min Active Infowar (turns) 298 | . 298 . Seismic 298 | . 298 . Robot Analysis Total . | . . . Derelict Logs Recovered 1 | . . 1 Drone Launches . | . . . Drone Recoveries . | . . . Exploration | -11 -10 -10 ------------- Run | Yrd Mat Min Turns Passed 1928 | 61 1385 482 Spaces Moved 1031 | 36 724 271 Core 5 | 5 . . Treads 867 | 31 724 112 Legs . | . . . Wheels 159 | . . 159 Hover . | . . . Flight . | . . . Fastest Speed 50 | 50 160 115 Average Speed 152 | 144 160 133 Slowest Speed 160 | 160 160 160 Overloaded Moves . | . . . Propulsion Burnouts . | . . . Robots Hopped . | . . . Potential Cave-ins . | . . . Cave-ins Triggered . | . . . Exploration Rate (%) 51 | 4 95 54 Regions Visited 2 Branch Regions 1 Pre-discovered Areas . | . . . Known Exits Taken . | . . . Unknown Exits Taken 2 | 1 1 . Scrap Searched 1 | . . 1 Spaces Dug . | . . . Terrain Destroyed . | . . . Melee . | . . . Projectile . | . . . AOE . | . . . Terrain Rammed . | . . . Walls Destroyed . | . . . Machines Disabled . | . . . Actions | -11 -10 -10 --------- Run | Yrd Mat Min Total 1233 | 42 853 338 Wait 69 | . 54 15 Move 1029 | 35 723 271 Hop . | . . . Pick Up 27 | 1 17 9 Fast Attach 8 | 6 2 . Attach 5 | . 3 2 Detach . | . . . Swap 3 | . 2 1 Drop 10 | . 2 8 Fire 82 | . 50 32 Melee . | . . . Ram . | . . . Kick . | . . . Crush . | . . . Escape Stasis . | . . . Rewire . | . . . Trap . | . . . Miscellaneous . | . . . Route ------- -11/Scrapyard -10/Materials (discovered 6 exits: [*Mat x3] / [*Min x2] / [*Sub]) -10/Mines History --------- Turn | Location | Event 10 | -11/Scrapyard | Discovered new exit (range 16) 62 | -11/Scrapyard | Entered Materials 62 | -10/Materials | Discovered new exit (range 8) 309 | -10/Materials | Build established: Mutant 394 | -10/Materials | Discovered new exit (range 9) 802 | -10/Materials | Discovered new exit (range 7) 895 | -10/Materials | Discovered new exit (range 10) 1212 | -10/Materials | Discovered new exit (range 4) 1282 | -10/Materials | Discovered new exit (range 13) 1447 | -10/Materials | Entered Mines 1452 | -10/Mines | Core integrity fell below 50% 1519 | -10/Mines | Assembled infested the area 1741 | -10/Mines | Joined a pair of Derelicts in attacking an 0b10 outpost 1923 | -10/Mines | Core integrity fell below 20% 1929 | -10/Mines | Destroyed by as-62329 with Assembled Blade Last Messages --------------- 01764_ Dropped Med. Laser. 01766_ Acquired 10 matter. 01770_ Dropped Sml. Laser. 01770_ Acquired Med. Laser. 01771_ HD-3BW(g): "I guess it's a good idea to hang out here and mop up anything else that comes by." 01772_ Dropped Aluminum Leg. 01773_ Acquired Lgt. Armor Plating. 01779_ Dropped Aluminum Leg. 01779_ Acquired Targeting Computer. 01877_ Dropped Sml. Laser. 01879_ Acquired Wheel. 01907_ Searching scrap... 01907_ Found Utility Shielding. 01907_ Found Mining Claw. 01907_ Found Welding Torch. 01907_ Found 36 Matter. 01922_ Com. Wheel destroyed. 01925_ Destroyed Asb. Hover Unit. Map ----- +----------------------------------------------------+ | ????????????????####????# """ ##?????# | | ????????????????????????## """ ####??????# | | ?????????????????????????## """ ##?????????# | | ??????????????????????????### #??????????# | | ????????????????????????????### ##??????????### | | ??????????????????????????????## #?????????????? | | ???????????????????????????????# #?????????????? | | ???????????????????????????????# #?????????????? | | ???????????????????????????????# #?????????????? | | ??????????????????????????????## #??????????#### | | ?????????????????????????????## ##?????????# | | ????????????????????????????## #######???# ## | | ???????????????????????????## ## ##??# #? | | ???????????????????????????# ##?#%#? | | ???????????????????????????# ###!#? | | ???????????????????????????# [*% #? | | ??????????????????????????## ## ###=#? | | ??????????????????????????# ###### #?# #? | | ??????????????????????????# ##????## #?# #? | | ??????????????????????????## ##??????## ##?# #? | | ???????????????????????????## #?####???####??#*#? | | ????????????????????????????# ### ##????????#!#? | | ??????????????????????####??# ## #????????#=#? | | ?????????????????????## #### ## #####????#%#? | | ????????????????????## !%/ ## ## ######*#? | | ????????????????????# a@ ## =#? | | ???????????????????# ######### #### ###? | | ??????????????????# ?????#### ##?# #??? | | ?????????????????# ?????# % #?# #??? | | ????????????????# ?????# % #?# #??? | | ????????????????# ?##### #### ##?# ??? | | ???????????????# ### =% #??########??###??? | | ???????????????# ##?# * #?????????????????? | | ???????????????#=% ??# =##?????????????????? | | ???????????????%!= = ###??????????????????? | | ??????????????!=!%= #####????????????????????? | | ?????????????####[ ??????????????????????????? | | ????????????????# ???????????????????????????? | | ????????????????# ????????????????????????????? | | ????????????????# ?????????????????????????????? | | ????????????????# ??????????????????????????????? | | ???????????????# ???????????????????????????????? | | ?????????????????????????????????????????????????? | | ?????????????????????????????????????????????????? | | ?????????????????????????????????????????????????? | | ?????????????????????????????????????????????????? | | ?????????????????????????????????????????????????? | | ?????????????????????????????????????????????????? | | ?????????????????????????????????????????????????? | | ?????????????????????????????????????????????????? | +----------------------------------------------------+ Best States ------------- Heat Dissipation 39 Energy Generation 10 Energy Capacity 250 Matter Stores 300 Matter Capacity 300 Sight Range 16 Terrain Scan Density 10 Evasion (%) 40 Recoil Reduction 2 Item Schematics ----------------- None Robot Schematics ------------------ None Fabricated ------------ Nothing Repaired ---------- Nothing Studied --------- None Alien Tech Used ----------------- None Achievements -------------- None Challenges ------------ None Game ------ Seed ParticleDisruptorStreamer Manual? 0 Play Time 00:15:38 Cumulative 196.5 hours Start 2026.08.08 @ 01:30:19 End 2026.08.08 @ 01:45:02 Sessions 1 Manual Loads 0 Difficulty Rogue Special Mode None Game No. 206 Rogue 152 Adventurer 54 Explorer 0 Win Type - Total 9 Types 5/0/1/1/0/0/0/1/0/1 Lore% 69 Gallery% 60 Achievement% 56 Wizard Run 0 Options --------- Layout 1 ASCII 0 Keyboard 0 Movement Mouse Keybinds 1 Fullscreen 2 Font 32/Tamsyn Map View 50x35 Zoom Use 0% Tactical HUD 1 Map Filters NONE Filters NONE Steam 1 RUN: ae6e65ed-d842-4b02-8e9c-a0128c888a07